{"text_format":"1","workbook":"xlsx","n_sheets":31,"sheets":["modProv","modList00","modList01","modList02","Инструкция","Лог обновления","Титульный","Список МО","Стандарты","Ссылки на публикации","Комментарии","Проверка","AllSheetsInThisWorkbook","TEHSHEET","et_union_hor","et_union_vert","modInfo","modRegion","modReestr","modfrmReestr","modUpdTemplMain","REESTR_ORG","modClassifierValidate","modHyp","modList03","modfrmDateChoose","modComm","modThisWorkbook","REESTR_MO","modfrmReestrMR","modfrmCheckUpdates"],"not_rendered":{"charts":0,"images":21,"macros":1,"external_links":0,"defined_names":143,"comments":0,"pivot_tables":0},"unopened":[],"bounds":{"document_bytes":16777216,"sheet_cells":100000,"rows_first":2000,"rows_last":500,"rows_between":2000,"halvings":0,"cell_chars":16384,"cell_head_chars":4096},"cells_cut":0,"cells_raw":0,"read":"whole","date_system":"1900"}

{"sheet":"modProv","index":0,"n_rows":0,"n_cols":0,"rows_kept":0,"cut":false,"hidden":true,"merged":[]}

{"sheet":"modList00","index":1,"n_rows":0,"n_cols":0,"rows_kept":0,"cut":false,"hidden":true,"merged":[]}

{"sheet":"modList01","index":2,"n_rows":0,"n_cols":0,"rows_kept":0,"cut":false,"hidden":true,"merged":[]}

{"sheet":"modList02","index":3,"n_rows":0,"n_cols":0,"rows_kept":0,"cut":false,"hidden":true,"merged":[]}

{"sheet":"Инструкция","index":4,"n_rows":102,"n_cols":27,"rows_kept":102,"cut":false,"hidden":false,"merged":[[39,4,39,23],[73,4,73,23],[45,4,56,23],[59,4,59,6],[22,15,22,22],[60,7,60,23],[69,4,69,23],[57,4,57,6],[58,4,58,6],[70,4,70,23],[79,8,79,23],[72,4,72,23],[79,4,79,7],[57,7,57,23],[1,1,1,6],[2,1,2,2],[4,1,4,24],[6,4,18,23],[20,5,20,12],[20,15,20,23],[21,5,21,12],[21,15,21,23],[34,4,38,23],[59,7,59,23],[58,7,58,23],[40,4,44,23],[78,4,78,23],[76,4,76,23],[74,4,74,23],[71,4,71,23],[75,4,75,23],[101,5,101,23],[99,5,99,18],[80,4,80,6],[80,7,80,23],[81,4,81,6],[81,7,81,23],[82,7,82,23],[97,4,97,23],[83,7,83,23],[82,4,82,6]]}
[null,null,null,null,null,null,null,null,null,null,null,null,null,null,null,null,null,null,null,null,null,null,null,null,null,null," (требуется обновление)"]
[null,{"$f":"\"Код шаблона: \" & GetCode()","v":"Код шаблона: JKH.OPEN.INFO.REQUEST.WARM"}]
[null,{"$f":"\"Версия \" & GetVersion()","v":"Версия 1.1.1"}]
[]
[null,"Предложение об установлении цен (тарифов) в сфере теплоснабжения и о способах приобретения, стоимости и объемах товаров, необходимых для производства регулируемых товаров и (или) оказания регулируемых услуг"]
[]
[null,null,null,null,"• На рабочем месте должен быть установлен MS Office 2003 SP3, 2007 SP3, 2010 с полной версией MS Excel\n\n• Макросы во время работы должны быть включены (!)\n\n• Для корректной работы отчёта требуется выбрать низкий уровень безопасности\n(В меню MS Excel 2003: Сервис | Макрос | Безопасность | выбрать пункт «Низкая безопасность» | OK)\n(В меню MS Excel 2007/2010: Параметры Excel | Центр управления безопасностью | Параметры центра управления безопасностью | Параметры макросов | Включить все макросы | ОК)\n\n• Если Вы работаете в табличном процессоре MS Excel 2007 и выше, то можете использовать для работы формат XLSM (Книга Excel с поддержкой макросов). При работе в формате XLSM заметно быстрее происходит сохранение файла, а также уменьшается размер по сравнению с форматом XLS\n\n• Не рекомендуется снимать защиту с листов и каким-либо образом модифицировать защищаемые формулы и расчётные поля, в противном случае, отчёт будет отклонён системой\n\n• При сохранении не следует выбирать формат XLSX (Книга Excel), так как в указанном формате макросы, необходимые для работы отчёта, безвозвратно удаляются"]
[]
[]
[]
[]
[]
[]
[]
[]
[]
[]
[]
[]
[]
[null,null,null,null,"A"," - необязательные для заполнения",null,null,null,null,null,null,null,null,"A"," - с формулами и константами"]
[null,null,null,null,"A"," - обязательные для заполнения",null,null,null,null,null,null,null,null,"A"," - с выбором значений до двойному клику,"]
[null,null,null,null,null,null,null,null,null,null,null,null,null,null,null,"либо с возможностью выбора даты из календаря или ручного ввода"]
[]
[]
[]
[]
[]
[]
[]
[]
[]
[]
[]
[null,null,null,null,"Если в предложенном Вам списке необходимая организация, МР/МО отсутствуют, обновите реестры с помощью кнопок\n\nВ результате синхронизации с базой данных список организаций (МР/МО) будет заменён актуальным (механизм синхронизации требует подключения к сети Интернет и основан на использовании протокола HTTPS (TCP порт 443))\n\nЕсли после обновления Вам не удалось найти необходимую организацию в списке, обратитесь к ответственному за поддержание реестра Вашего региона. Информация о региональных органах регулирования доступна по ссылке:"]
[]
[]
[]
[]
[null,null,null,null,"http://www.fstrf.ru/regions/region/showlist"]
[]
[]
[]
[]
[]
[null,null,null,null,"• При сохранении шаблона осуществляется проверка корректности данных, в том числе на наличие значений в ячейках, обязательных для заполнения\n\n• Если какая-то ячейка не удовлетворяет условию проверки, на лист «Проверка» добавляется гиперссылка на данную ячейку и указывается причина ошибки\n\n• В колонке «Статус» для каждого сообщения возможны 2 значения: ошибка и предупреждение\n\n• При наличии сообщений со статусом «Ошибка» шаблон будет отклонён системой и не будет загружен в хранилище данных, сообщения со статусом «Предупреждение» носят информационный характер, и такой шаблон будет принят системой"]
[]
[]
[]
[]
[]
[]
[]
[]
[]
[]
[]
[null,null,null,null,"Web-сайт:",null,null,"http://support.eias.ru/index.php?a=add&catid=5"]
[null,null,null,null,"Дистрибутивы:",null,null,"http://eias.ru/?page=show_distrs"]
[null,null,null,null,null,null,null,"для устранения ошибок (например, \"Compile error in hidden module\")"]
[]
[]
[]
[]
[]
[]
[]
[]
[]
[null,null,null,null,"Принципы работы с шаблоном"]
[null,null,null,null," Перед началом работы с шаблоном Вам необходимо нажать кнопку \"Приступить к заполнению\", после чего на форме выбора выбрать из выпадающего списка нужный субъект РФ. После выбора субъекта РФ в шаблоне отобразятся листы для заполнения."]
[null,null,null,null," На листе «Титульный» нужно заполнить все ячейки голубого и синего цвета.\n Для создания печатной формы нажмите на иконку принтера на листе «Титульный» (левый верхний угол)."]
[null,null,null,null," Гиперссылки на листах вводите, не нарушая цвет ячейки (если копируете гиперссылку из браузера, то выполните двойной щелчок левой кнопки мыши по ячейке и только после этого можете вставить скопированный элемент).\n"]
[null,null,null,null," При вводе даты на расчетных листах необходимо выбрать дату из календаря (иконка справа от выбранной ячейки), либо ввести дату непосредственно в ячейку в формате - 'ДД.ММ.ГГГГ'."]
[null,null,null,null," Если какой-либо из показателей на расчетных листах для Вашей организации отсутствует, введите в поле, обязательное для заполнение, «0» (для числовых показателей) и «-» (для текстовых).\n"]
[null,null,null,null," Внимательно следите за информационными сообщениями на расчетных листах."]
[null,null,null,null," Все необходимые комментарии по всем формам Вы можете отразить на листе «Комментарии»."]
[]
[null,null,null,null," Обосновывающие материалы необходимо загружать с помощью \"ЕИАС Мониторинг\""]
[null,null,null,null,"Инструкция",null,null,null,"http://eias.ru/files/shablon/manual_loading_through_monitoring.pdf"]
[]
[null,null,null,null,"E-mail:",null,null,"openinfo@eias.ru"]
[null,null,null,null,"Web-сайт:",null,null,"http://eias.ru/?page=show_templates"]
[]
[]
[]
[]
[]
[]
[]
[]
[]
[]
[]
[]
[]
[]
[null,null,null,null,"При наличии подключения к Интернет, можно автоматически проверять наличие доступных обновлений. Выберите способ оповещения о наличии обновлений для отчёта:"]
[]
[null,null,null,null,null,"проверять доступные обновления (рекомендуется)",null,null,null,null,null,null,null,null,null,null,null,null,null,null,null,null,null,null,null,null,"y"]
[]
[null,null,null,null,null,"никогда не проверять наличие обновлений (не рекомендуется)"]

{"sheet":"Лог обновления","index":5,"n_rows":46,"n_cols":3,"rows_kept":46,"cut":false,"hidden":true,"merged":[]}
["Дата/Время","Сообщение","Статус"]
[]
["2014-01-15T10:38:06","Проверка доступных обновлений...","Информация"]
["2014-01-15T10:38:06","Версия шаблона 1.0.2 актуальна, обновление не требуется","Информация"]
["2014-05-05T17:00:14","Проверка доступных обновлений...","Информация"]
["2014-05-05T17:00:14","Доступно обновление до версии 1.0.3","Информация"]
["2014-05-05T17:00:15","Описание изменений: Версия 1.0.3 (для шаблонов версии 1.0.2 и выше)\n1. Корректировка проверки при сохранении.","Информация"]
["2014-05-05T17:00:15","Размер файла обновления: 271360 байт","Информация"]
["2014-05-05T17:00:19","Подготовка к обновлению...","Информация"]
["2014-05-05T17:00:25","Сохранение файла резервной копии: C:\\Users\\borinskih\\Desktop\\11.BKP.xlsm","Информация"]
["2014-05-05T17:00:26","Резервная копия создана: C:\\Users\\borinskih\\Desktop\\11.BKP.xlsm","Информация"]
["2014-05-05T17:00:26","Создание книги для установки обновлений...","Информация"]
["2014-05-05T17:00:27","Файл обновления загружен: C:\\Users\\borinskih\\Desktop\\UPDATE.JKH.OPEN.INFO.REQUEST.WARM.TO.1.0.3.79.xls","Информация"]
["2014-05-05T17:00:31","Обновление завершилось удачно! Шаблон JKH.OPEN.INFO.REQUEST.WARM.xlsm сохранен под именем 'JKH.OPEN.INFO.REQUEST.WARM(v1.0.3).xlsm'","Информация"]
["2015-05-05T09:26:17","Проверка доступных обновлений...","Информация"]
["2015-05-05T09:26:17","Доступно обновление до версии 1.1.1","Информация"]
["2015-05-05T09:26:17","Описание изменений: ! Обновление доступно для шаблонов версии 1.0.2 и выше\n\nдо версии 1.1.1\n1. скорректировано заполнение поля 'Условный порядковый номер' на листе 'Список МО';\n2. исправлены формулировки на листе 'Стандарты' согласно нормативно-правовым актам;\n3. добавлена разбивка по компонентам для вида тарифа 'тариф на горячую воду, поставляемую с использованием открытых систем теплоснабжения (горячего водоснабжения)';\n\nдо версии 1.0.3\n1. скорректирована проверка при сохранении","Информация"]
["2015-05-05T09:26:17","Размер файла обновления: 640000 байт","Информация"]
["2015-05-05T09:26:23","Подготовка к обновлению...","Информация"]
["2015-05-05T09:26:25","Сохранение файла резервной копии: \\\\Yargkserver\\public\\Департамент тарифообразования\\Раскрытие информации план 2016\\Тарифная заявка теплоэнергия 2016\\JKH.OPEN.INFO.REQUEST.WARM(v1.0.3).BKP..xlsm","Информация"]
["2015-05-05T09:26:29","Резервная копия создана: \\\\Yargkserver\\public\\Департамент тарифообразования\\Раскрытие информации план 2016\\Тарифная заявка теплоэнергия 2016\\JKH.OPEN.INFO.REQUEST.WARM(v1.0.3).BKP..xlsm","Информация"]
["2015-05-05T09:26:29","Создание книги для установки обновлений...","Информация"]
["2015-05-05T09:26:36","Файл обновления загружен: \\\\Yargkserver\\public\\Департамент тарифообразования\\Раскрытие информации план 2016\\Тарифная заявка теплоэнергия 2016\\UPDATE.JKH.OPEN.INFO.REQUEST.WARM.TO.1.1.1.63.xls","Информация"]
["2015-05-05T09:26:42","Обновление завершилось удачно! Шаблон JKH.OPEN.INFO.REQUEST.WARM(v1.0.3).xlsm сохранен под именем 'JKH.OPEN.INFO.REQUEST.WARM(v1.0.3)_to_(v1.1.1).xlsm'","Информация"]
["2015-05-05T09:28:59","Проверка доступных обновлений...","Информация"]
["2015-05-05T09:28:59","Версия шаблона 1.1.1 актуальна, обновление не требуется","Информация"]
["2015-05-05T10:27:15","Проверка доступных обновлений...","Информация"]
["2015-05-05T10:27:15","Версия шаблона 1.1.1 актуальна, обновление не требуется","Информация"]
["2015-05-05T10:51:19","Проверка доступных обновлений...","Информация"]
["2015-05-05T10:51:19","Версия шаблона 1.1.1 актуальна, обновление не требуется","Информация"]
["2015-05-05T10:57:49","Проверка доступных обновлений...","Информация"]
["2015-05-05T10:57:49","Версия шаблона 1.1.1 актуальна, обновление не требуется","Информация"]
["2015-05-05T16:12:02","Проверка доступных обновлений...","Информация"]
["2015-05-05T16:12:02","Версия шаблона 1.1.1 актуальна, обновление не требуется","Информация"]
["2015-05-05T16:44:07","Проверка доступных обновлений...","Информация"]
["2015-05-05T16:44:07","Версия шаблона 1.1.1 актуальна, обновление не требуется","Информация"]
["2015-05-05T17:03:01","Проверка доступных обновлений...","Информация"]
["2015-05-05T17:03:02","Версия шаблона 1.1.1 актуальна, обновление не требуется","Информация"]
["2015-05-06T09:56:59","Проверка доступных обновлений...","Информация"]
["2015-05-06T09:56:59","Версия шаблона 1.1.1 актуальна, обновление не требуется","Информация"]
["2015-05-06T15:44:10","Проверка доступных обновлений...","Информация"]
["2015-05-06T15:44:10","Версия шаблона 1.1.1 актуальна, обновление не требуется","Информация"]
["2015-10-21T10:21:35","Проверка доступных обновлений...","Информация"]
["2015-10-21T10:21:36","Версия шаблона 1.1.1 актуальна, обновление не требуется","Информация"]
["2015-10-21T11:20:52","Проверка доступных обновлений...","Информация"]
["2015-10-21T11:20:52","Версия шаблона 1.1.1 актуальна, обновление не требуется","Информация"]

{"sheet":"Титульный","index":6,"n_rows":56,"n_cols":6,"rows_kept":56,"cut":false,"hidden":false,"merged":[[4,4,4,5]]}
[null,null,null,null,null,28134686]
[]
[]
[null,null,null,null,null,{"$f":"version","v":"Версия 1.1.1"}]
[null,null,null,null,"Предложение об установлении цен (тарифов) в сфере теплоснабжения и о способах приобретения, стоимости и объемах товаров, необходимых для производства регулируемых товаров и (или) оказания регулируемых услуг"]
[]
[null,null,null,null,"Субъект РФ","Ярославская область"]
[]
[null,null,null,null,"Публикация","На сайте регулирующего органа"]
[]
[null,null,null,null,"По желанию организации информация раскрыта в дополнительных источниках публикации?","да"]
[]
["нет",null,null,null,"Указывать разбивку НВВ по полугодиям","нет"]
[]
[null,null,null,null,null,"Период регулирования"]
["01.07.2015",null,null,null,"Начало очередного периода регулирования","01.07.2015"]
["31.12.2015",null,null,null,"Окончание очередного периода регулирования","31.12.2015"]
[]
[null,null,null,null,"Является ли данное юридическое лицо подразделением (филиалом) другой организации","нет"]
[]
[null,null,null,null,"Наименование организации","АО \"Тутаевская ПГУ\""]
[null,null,null,null,"Наименование филиала"]
[null,null,null,null,"ИНН","7611020204"]
[null,null,null,null,"КПП","761101001"]
[]
[null,null,null,null,"Вид деятельности","производство комбинированная выработка"]
[]
[null,null,null,null,"Режим налогообложения","общий"]
[]
[null,null,null,null,"Организация выполняет/планирует к выполнению инвестиционную программу","нет"]
[]
["тариф на услуги по передаче тепловой энергии",null,null,null,"Тариф","тариф на услуги по передаче тепловой энергии"]
[]
[null,null,null,null,"Наличие двухставочного тарифа","нет"]
[]
[null,null,null,null,"НДС (Отметка об учтенном НДС)","тариф указан без НДС для плательщиков НДС"]
[]
[null,null,null,null,"Тариф на теплоноситель установлен с разбивкой по поставщикам"]
[]
[null,null,null,null,null,"Адрес регулируемой организации"]
[null,null,null,null,"Юридический адрес","152300, Ярославская область, г.Тутаев, ул.Промышленная, д.15"]
[null,null,null,null,"Почтовый адрес","150040,г. Ярославль, ул. Победы, д. 28а"]
[]
[null,null,null,null,null,"Руководитель"]
[null,null,null,null,"Фамилия, имя, отчество","Морозов Виктор Леонтьевич"]
[null,null,null,null,"(код) номер телефона","8 (4852) 40-79-65"]
[]
[null,null,null,null,null,"Главный бухгалтер"]
[null,null,null,null,"Фамилия, имя, отчество","Кульпина Ирина Владимировна"]
[null,null,null,null,"(код) номер телефона","8 (4852) 40-79-65"]
[]
[null,null,null,null,null,"Должностное лицо, ответственное за составление формы"]
[null,null,null,null,"Фамилия, имя, отчество","Попова Н.А."]
[null,null,null,null,"Должность","начальник ОФТ"]
[null,null,null,null,"(код) номер телефона","8 (4852) 40-79-65"]
[null,null,null,null,"e-mail","n.popova@yargk.ru"]

{"sheet":"Список МО","index":7,"n_rows":16,"n_cols":8,"rows_kept":16,"cut":false,"hidden":false,"merged":[[13,3,14,3],[13,4,14,4],[3,3,3,7],[4,3,4,7],[6,5,6,7],[7,5,7,7],[8,5,8,7]]}
[]
[]
[]
[null,null,null,"Дифференциация тарифа"]
[null,null,null,{"$f":"IF(org=0,\"Не определено\",org)","v":"АО \"Тутаевская ПГУ\""}]
[]
[null,null,null,null,null,"Система теплоснабжения"]
[null,null,null,null,"Условный порядковый номер",1]
[null,null,null,null,"Описание","1"]
[]
[null,null,null,"№ п/п","Муниципальный район","№ п/п","Муниципальное образование","ОКТМО"]
[null,null,null,"1","2","3","4","5"]
[null,null,null,0,null,0]
[null,null,"О",1,"Тутаевский муниципальный район",1,"Городское поселение г.Тутаев","78643101"]
[null,null,null,null,null,null,"Добавить МО"]
[null,null,null,null,"Добавить МР"]

{"sheet":"Стандарты","index":8,"n_rows":38,"n_cols":8,"rows_kept":38,"cut":false,"hidden":false,"merged":[[15,0,20,0],[37,4,37,7],[4,3,4,7],[5,3,5,7]]}
[]
[]
[]
[]
[null,null,null,"Предложение об установлении цен (тарифов) в сфере теплоснабжения и о способах приобретения, стоимости и объемах товаров, необходимых для производства регулируемых товаров и (или) оказания регулируемых услуг"]
[null,null,null,{"$f":"IF(org=0,\"Не определено\",org)","v":"АО \"Тутаевская ПГУ\""}]
[]
[null,null,null,"№ п/п","Информация, подлежащая раскрытию","Значение","Ссылки на документы","Примечание"]
[null,null,null,"1","2","3","4","5"]
[null,null,null,"1.","Информация о предложении регулируемой организации об установлении тарифов в сфере теплоснабжения на очередной период регулирования",null,null,0]
[null,null,null,"1.1.","Копия утвержденной в установленном порядке инвестиционной программы (проекта инвестиционной программы)"]
[null,null,null,"1.2.","Метод регулирования",null,null,0]
["1.2.1","О",null,{"$f":"A13&\".\"","v":"1.2.1."},"С 01.07.2015 по 31.12.2015","метод экономически обоснованных расходов (затрат)"]
[null,null,null,null,"Добавить метод"]
[null,null,null,"1.3.",{"$f":"\"Расчетная величина цен (тарифов)\"&IF(group_rates<>tariff_GVS,IF(group_rates=\"\",\"\",IF(double_rate_tariff=\"да\",\"\",\", \"&unit_tariff_single_rate)),\"\")","v":"Расчетная величина цен (тарифов), руб/Гкал"},null,null,0]
["1.3.1",null,null,{"$f":"A16&\".\"","v":"1.3.1."},"С 01.07.2015 по 31.12.2015",357.04]
[null,null,null,{"$f":"D16&IF(group_rates=tariff_GVS,\"1.\",\"\")","v":"1.3.1."},{"$f":"IF(group_rates=\"\",\"\",IF(group_rates=TEHSHEET!$S$10,TEHSHEET!$R$10,group_rates)) & IF(double_rate_tariff=\"да\",,\", \"&unit_tariff_single_rate)","v":"тариф на услуги по передаче тепловой энергии, руб/Гкал"}]
[null,null,null,{"$f":"D17&\"1.\"","v":"1.3.1.1."},{"$f":"name_dblRate_1 & \", \" & unit_tariff_double_rate_p","v":"мощность, руб/Гкал"}]
[null,null,null,{"$f":"D17&\"2.\"","v":"1.3.1.2."},{"$f":"name_dblRate_2 & \", \" & unit_tariff_double_rate_c","v":"содержание, тыс руб/Гкал/час в месяц"}]
[null,"f",null,{"$f":"D16&\"2.\"","v":"1.3.1.2."},{"$f":"IF(group_rates=\"\",\"\",IF(group_rates=TEHSHEET!$S$10,TEHSHEET!$R$11,\"\"))&\", \"&TEHSHEET!$T$5","v":", руб/м3"}]
[null,null,null,null,"Добавить поставщика"]
[null,null,null,null,{"$f":"\"Расчетная величина цен (тарифов)\"&IF(group_rates<>tariff_GVS,IF(group_rates=\"\",\"\",IF(double_rate_tariff=\"да\",\"\",\", \"&unit_tariff_single_rate)),\"\")","v":"Расчетная величина цен (тарифов), руб/Гкал"}]
[null,null,null,"1.4.","Срок действия цен (тарифов)",{"$f":"\"с \"&periodStart & \" по \" & periodEnd & \" гг.\"","v":"с 01.07.2015 по 31.12.2015 гг."}]
[null,null,null,"1.5.","Долгосрочные параметры регулирования (в случае если их установление предусмотрено выбранным методом регулирования)*"]
[null,null,null,"1.6.",{"$f":"\"необходимая валовая выручка на соответствующий период, в том числе с разбивкой по \" & IF(flag_NVV=\"да\",\"полугодиям, тыс руб:\", \"годам, тыс руб:\")","v":"необходимая валовая выручка на соответствующий период, в том числе с разбивкой по годам, тыс руб:"},{"$f":"SUM(F26:F27)","v":253.53100000000001}]
["1.6.1","О",null,{"$f":"A26&\".\"","v":"1.6.1."},"С 01.07.2015 по 31.12.2015",253.53100000000001]
[null,null,null,null,"Добавить НВВ"]
[null,null,null,"1.7.",{"$f":"\"Годовой объем полезного отпуска тепловой энергии (теплоносителя), \"&unit_tariff_useful_output","v":"Годовой объем полезного отпуска тепловой энергии (теплоносителя), тыс Гкал"},null,null,0]
["1.7.1","О",null,{"$f":"A29&\".\"","v":"1.7.1."},"С 01.07.2015 по 31.12.2015",0.71009]
[null,null,null,null,"Добавить метод"]
[null,null,null,"1.8.","Расчетная величина цен (тарифов)",357.04]
[null,null,null,"2.","Информация о способах приобретения, стоимости и об объемах товаров, необходимых для производства регулируемых товаров и(или) оказания регулируемых услуг регулируемой организацией",null,null,0]
[null,null,null,"2.1.","Сведения о правовых актах, регламентирующих правила закупки (положение о закупках) в регулируемой организации","www.yargk.ru",null,"Раздел \"Закупки\""]
[null,null,null,"2.2.","Сведения о месте размещения положения о закупках регулируемой организации","www.yargk.ru",null,"Раздел \"Закупки\""]
[null,3,null,"2.3.","Сведения о планировании закупочных процедур и результатах их проведения","www.yargk.ru",null,"Раздел \"Закупки\""]
[null,null,null,null,"Добавить сведения"]
[null,null,null,null,"ФЗ 190 ст. 9 2. До 1 января 2016 года осуществляется поэтапный переход к регулированию тарифов на тепловую энергию (мощность), тарифов на услуги в сфере теплоснабжения, теплоноситель на основе долгосрочных параметров государственного регулирования цен (тарифов) в сфере теплоснабжения (с применением метода обеспечения доходности инвестированного капитала, или метода индексации установленных тарифов, или метода сравнения аналогов)."]
[null,null,null,"*","ФЗ 190 ст. 9 2. До 1 января 2016 года осуществляется поэтапный переход к регулированию тарифов на тепловую энергию (мощность), тарифов на услуги по передаче тепловой энергии, теплоноситель на основе долгосрочных параметров государственного регулирования цен (тарифов) в сфере теплоснабжения (с применением метода обеспечения доходности инвестированного капитала, или метода индексации установленных тарифов, или метода сравнения аналогов)."]

{"sheet":"Ссылки на публикации","index":9,"n_rows":15,"n_cols":8,"rows_kept":15,"cut":false,"hidden":false,"merged":[[10,0,11,0],[10,4,10,7],[12,0,13,0],[12,4,12,7],[4,3,4,7],[5,3,5,7]]}
[]
[]
[]
[]
[null,null,null,"Ссылки на публикации"]
[null,null,null,{"$f":"IF(org=0,\"Не определено\",org)","v":"АО \"Тутаевская ПГУ\""}]
[]
[]
[null,null,null,"№ п/п","Содержание","Наименование сайта","Дата размещения информации","Адрес страницы сайта в сети \"Интернет\", на которой размещена информация"]
[null,null,null,"1","2","3","4","5"]
["1",null,null,{"$f":"A11","v":"1"},"Информация о способах приобретения, стоимости и объемах товаров, необходимых для производства регулируемых товаров и (или) оказания регулируемых услуг регулируемой организацией, содержит сведения о правовых актах, регламентирующих правила закупки (положение о закупках) в регулируемой организации, а также о месте размещения положения о закупках регулируемой организации, информации о планировании конкурсных процедур и результатах их проведения (п.26 Постановления Правительства Российской Федерации от 05 июля 2013 г. N 570 \"О стандартах раскрытия информации теплоснабжающими организациями, теплосетевыми организациями и органами регулирования\")"]
[null,null,null,{"$f":"A11&\".1\"","v":"1.1"},"Сайт организации в сети Интернет","Официальный сайт АО ЯГК","14.09.2015","www.yargk.ru"]
["2",null,null,{"$f":"A13","v":"2"},"Информация о предложении регулируемой организации об установлении тарифов в сфере теплоснабжения на очередной расчетный период регулирования (п.27 Постановления Правительства Российской Федерации от 05 июля 2013 г. N 570 \"О стандартах раскрытия информации теплоснабжающими организациями, теплосетевыми организациями и органами регулирования\")"]
[null,null,null,{"$f":"A13&\".1\"","v":"2.1"},"Сайт организации в сети Интернет","Официальный сайт АО ЯГК","14.09.2015","www.yargk.ru"]
[null,null,null,null,"Добавить"]

{"sheet":"Комментарии","index":10,"n_rows":13,"n_cols":5,"rows_kept":13,"cut":false,"hidden":false,"merged":[[6,3,6,4],[7,3,7,4]]}
[]
[]
[]
[]
[]
[]
[null,null,null,"Комментарии"]
[null,null,null,{"$f":"IF(org=0,\"Не определено\",org)","v":"АО \"Тутаевская ПГУ\""}]
[]
[null,null,null,"№ п/п","Комментарий"]
[null,null,null,"1","2"]
[null,null,null,0]
[null,null,null,null,"Добавить"]

{"sheet":"Проверка","index":11,"n_rows":14,"n_cols":4,"rows_kept":14,"cut":false,"hidden":false,"merged":[[1,1,1,3]]}
[]
[null,"Результат проверки"]
[]
[null,"Ссылка","Причина","Статус"]
[null,"Стандарты!H13","Не указано значение!","Предупреждение"]
[null,"Стандарты!H16","Не указано значение!","Предупреждение"]
[null,"Стандарты!H23","Не указано значение!","Предупреждение"]
[null,"Стандарты!H25","Не указано значение!","Предупреждение"]
[null,"Стандарты!H26","Не указано значение!","Предупреждение"]
[null,"Стандарты!H29","Не указано значение!","Предупреждение"]
[null,"Стандарты!H31","Не указано значение!","Предупреждение"]
[null,"Стандарты!G33","Не указано значение!","Предупреждение"]
[null,"Стандарты!G34","Не указано значение!","Предупреждение"]
[null,"Стандарты!G35","Не указано значение!","Предупреждение"]

{"sheet":"AllSheetsInThisWorkbook","index":12,"n_rows":24,"n_cols":2,"rows_kept":24,"cut":false,"hidden":true,"merged":[]}
["Расчетные листы","Скрытые листы"]
["Инструкция","AllSheetsInThisWorkbook"]
["Лог обновления","TEHSHEET"]
["Титульный","et_union_hor"]
["Список МО","et_union_vert"]
["Стандарты","modInfo"]
["Ссылки на публикации","modRegion"]
["Комментарии","modReestr"]
["Проверка","modfrmReestr"]
[null,"modUpdTemplMain"]
[null,"REESTR_ORG"]
[null,"modClassifierValidate"]
[null,"modProv"]
[null,"modHyp"]
[null,"modList00"]
[null,"modList01"]
[null,"modList02"]
[null,"modList03"]
[null,"modfrmDateChoose"]
[null,"modComm"]
[null,"modThisWorkbook"]
[null,"REESTR_MO"]
[null,"modfrmReestrMR"]
[null,"modfrmCheckUpdates"]

{"sheet":"TEHSHEET","index":13,"n_rows":85,"n_cols":23,"rows_kept":85,"cut":false,"hidden":true,"merged":[[0,20,0,21],[0,19,1,19],[0,22,1,22]]}
["REGION",null,"year_list","logical","Месяц\n(MONTH)","Квартал\n(QUARTER)","Месяц\n(kind_of_publication)","НДС\n/kind_of_NDS/","Номер СЦХВ(СЦВО)\n/SKI_number/","Единица измерения объема оказываемых услуг ГВС\n/kind_of_unit_GVS/","Метод регулирования\n/kind_of_control_method/",null,null,"версия шаблона\n (DocProp_Version)","6.0",null,null,null,"виды групп товаров\n/kind_group_rates/","Одноставочный","Двухставочный",null,"Полезный отпуск"]
["Алтайский край",null,2013,"да","январь","I квартал","На официальном сайте организации","общий","1","тыс.куб.м/сутки","метод экономически обоснованных расходов (затрат)",null,null,"код шаблона\n(DocProp_TemplateCode)","JKH.OPEN.INFO.QUARTER.GVS",null,null,null,null,null,{"$f":"IF(group_rates=$S$10,\"ставка за тепловую энергию\",\"мощность\")","v":"мощность"},{"$f":"IF(group_rates=$S$10,\"ставка за содержание тепловой мощности\",\"содержание\")","v":"содержание"}]
["Амурская область",null,2014,"нет","февраль","II квартал","На сайте регулирующего органа","общий с учетом освобождения от уплаты НДС","2","Гкал/час","метод индексации установленных тарифов",null,null,"сфера\n(TSphere)","ГВС",null,null,null,"единица измерения для листа Стандарты\n/unit_tariff/","руб/Гкал","руб/Гкал","тыс руб/Гкал/час в месяц","тыс Гкал"]
["Архангельская область",null,2015,null,"март","III квартал",null,"специальный (упрощенная система налогообложения, система налогообложения для сельскохозяйственных товаропроизводителей)","3","куб.м/час","метод обеспечения доходности инвестированного капитала",null,null,"сфера(латиница)\n(TSphere_trans)","GVS",null,null,"тариф на тепловую энергию (мощность)","тариф на тепловую энергию (мощность)"," руб/Гкал"," руб/Гкал","тыс руб/Гкал/час в месяц","тыс Гкал"]
["Астраханская область",null,2016,null,"апрель","IV квартал",null,null,"4",null,"метод сравнения аналогов",null,null,"сфера расширено\n(TSphere_full)","горячего водоснабжения",null,null,"тариф на теплоноситель","тариф на теплоноситель","руб/м3","-","-","тыс м3"]
["Белгородская область",null,2017,null,"май",null,null,"НДС для прочих режимов налогообложения\r\n/kind_of_NDS_tariff_etc/","5",null,null,null,null,null,null,null,null,"тариф на услуги по передаче тепловой энергии","тариф на услуги по передаче тепловой энергии","руб/Гкал","руб/Гкал","тыс руб/Гкал/час в месяц","тыс Гкал"]
["Брянская область",null,null,null,"июнь",null,null,"тариф указан с НДС для плательщиков НДС","6",null,null,null,null,null,null,null,null,"тариф на услуги по передаче теплоносителя","тариф на услуги по передаче теплоносителя","руб/Гкал","руб/Гкал","тыс руб/Гкал/час в месяц","тыс Гкал"]
["Владимирская область",null,null,null,"июль",null,null,"тариф указан без НДС для плательщиков НДС","7",null,null,null,null,null,null,null,null,"плата за услуги по поддержанию резервной тепловой мощности при отсутствии потребления тепловой энергии","плата за услуги по поддержанию резервной тепловой мощности при отсутствии потребления тепловой энергии","тыс руб/Гкал/час в месяц","-","-","тыс Гкал"]
["Волгоградская область",null,null,null,"август",null,null,null,"8",null,null,null,null,null,null,null,null,"плата за подключение (технологическое присоединение) к системе теплоснабжения","плата за подключение (технологическое присоединение) к системе теплоснабжения","тыс руб/Гкал/час (руб, тыс руб)","-","-","тыс Гкал"]
["Вологодская область",null,null,null,"сентябрь",null,null,"НДС\n/kind_of_NDS_tariff/","9",null,null,null,null,null,null,null,null,"компонент на тепловую энергию","тариф на горячую воду, поставляемую с использованием открытых систем теплоснабжения (горячего водоснабжения)","руб/Гкал","руб/Гкал ","тыс руб/Гкал/час в месяц","тыс Гкал"]
["Воронежская область",null,null,null,"октябрь",null,null,"тариф для организаций не являющихся плательщиками НДС","10",null,null,null,null,null,null,null,null,"компонент на теплоноситель"]
["г.Байконур",null,null,null,"ноябрь",null,null,null,"11"]
["г. Москва",null,null,null,"декабрь",null,null,null,"12"]
["г.Санкт-Петербург",null,null,null,null,null,null,null,"13"]
["Еврейская автономная область",null,null,null,null,null,null,null,"14"]
["Забайкальский край",null,null,null,null,null,null,null,"15"]
["Ивановская область",null,null,null,null,null,null,null,"16"]
["Иркутская область",null,null,null,null,null,null,null,"17"]
["Кабардино-Балкарская республика",null,null,null,null,null,null,null,"18"]
["Калининградская область",null,null,null,null,null,null,null,"19"]
["Калужская область",null,null,null,null,null,null,null,"20"]
["Камчатский край"]
["Карачаево-Черкесская республика"]
["Кемеровская область"]
["Кировская область"]
["Костромская область"]
["Краснодарский край"]
["Красноярский край"]
["Курганская область"]
["Курская область"]
["Ленинградская область"]
["Липецкая область"]
["Магаданская область"]
["Московская область"]
["Мурманская область"]
["Ненецкий автономный округ"]
["Нижегородская область"]
["Новгородская область"]
["Новосибирская область"]
["Омская область"]
["Оренбургская область"]
["Орловская область"]
["Пензенская область"]
["Пермский край"]
["Приморский край"]
["Псковская область"]
["Республика Адыгея"]
["Республика Алтай"]
["Республика Башкортостан"]
["Республика Бурятия"]
["Республика Дагестан"]
["Республика Ингушетия"]
["Республика Калмыкия"]
["Республика Карелия"]
["Республика Коми"]
["Республика Марий Эл"]
["Республика Мордовия"]
["Республика Саха (Якутия)"]
["Республика Северная Осетия-Алания"]
["Республика Татарстан"]
["Республика Тыва"]
["Республика Хакасия"]
["Ростовская область"]
["Рязанская область"]
["Самарская область"]
["Саратовская область"]
["Сахалинская область"]
["Свердловская область"]
["Смоленская область"]
["Ставропольский край"]
["Тамбовская область"]
["Тверская область"]
["Томская область"]
["Тульская область"]
["Тюменская область"]
["Удмуртская республика"]
["Ульяновская область"]
["Хабаровский край"]
["Ханты-Мансийский автономный округ"]
["Челябинская область"]
["Чеченская республика"]
["Чувашская республика"]
["Чукотский автономный округ"]
["Ямало-Ненецкий автономный округ"]
["Ярославская область"]

{"sheet":"et_union_hor","index":14,"n_rows":52,"n_cols":7,"rows_kept":52,"cut":false,"hidden":true,"merged":[[27,0,32,0],[15,0,16,0],[3,4,4,4],[3,3,4,3],[15,4,15,7]]}
[]
["et_List01","et_List01_1"]
[]
[null,null,null,null,null,1]
[null,null,null,null,null,null,"Добавить МО"]
[]
[]
["et_Comm"]
[]
[]
[]
[]
["et_List03"]
[]
[]
[null,null,null,{"$f":"A16","v":0}]
[null,null,null,{"$f":"A16&\".1\"","v":".1"},"Сайт организации в сети Интернет"]
[]
[]
[]
["et_List02_1"]
[]
[null,null,null,{"$f":"A23&\".\"","v":"."},{"$f":"\"с \"&periodStart & \" по \" & periodEnd","v":"с 01.07.2015 по 31.12.2015"}]
[]
[]
["et_List02_2"]
[]
[null,null,null,{"$f":"A28&\".\"","v":"."},{"$f":"\"С \"&periodStart & \" по \" & periodEnd & IF(double_rate_tariff=\"да\",,\", \"&unit_tariff_single_rate)","v":"С 01.07.2015 по 31.12.2015, руб/Гкал"}]
[null,null,null,{"$f":"D28&IF(group_rates=tariff_GVS,\"1.\",\"\")","v":"."},{"$f":"IF(group_rates=\"\",\"\",IF(group_rates=TEHSHEET!$S$10,TEHSHEET!$R$10,group_rates)) & IF(double_rate_tariff=\"да\",,\", \"&unit_tariff_single_rate)","v":"тариф на услуги по передаче тепловой энергии, руб/Гкал"}]
[null,null,null,{"$f":"D29&\"1.\"","v":".1."},{"$f":"name_dblRate_1 & \", \" & unit_tariff_double_rate_p","v":"мощность, руб/Гкал"}]
[null,null,null,{"$f":"D29&\"2.\"","v":".2."},{"$f":"name_dblRate_2 & \", \" & unit_tariff_double_rate_c","v":"содержание, тыс руб/Гкал/час в месяц"}]
[null,"f",null,{"$f":"D28&\"2.\"","v":".2."},{"$f":"IF(group_rates=\"\",\"\",IF(group_rates=TEHSHEET!$S$10,TEHSHEET!$R$11,\"\"))&\", \"&TEHSHEET!$T$5","v":", руб/м3"}]
[null,null,null,null,"Добавить поставщика"]
[]
["et_List02_6"]
[]
[null,null,null,{"$f":"B37&\".\"","v":"."}]
[]
[]
["et_List02_3"]
[]
[null,null,null,{"$f":"A42&\".\"","v":"."},{"$f":"\"с \"&periodStart & \" по \" & periodEnd","v":"с 01.07.2015 по 31.12.2015"}]
[]
[]
["et_List02_4"]
[]
[null,null,null,{"$f":"A47&\".\"","v":"."},{"$f":"\"с \"&periodStart & \" по \" & periodEnd","v":"с 01.07.2015 по 31.12.2015"}]
[]
[]
["et_List02_5"]
[]
[null,null,null,{"$f":"A52&\".\"","v":"."}]

{"sheet":"et_union_vert","index":15,"n_rows":0,"n_cols":0,"rows_kept":0,"cut":false,"hidden":true,"merged":[]}

{"sheet":"modInfo","index":16,"n_rows":17,"n_cols":2,"rows_kept":17,"cut":false,"hidden":true,"merged":[]}
[null,"Титульный"]
[null,"Для выбора того или иного источника публикации выполните двойной щелчок по синей ячейке напротив соответствующего источника.\nВНИМАНИЕ! Если Вы снимаете галочку с пункта, то будут скрыты и очищены соответствующие строки на листе \"Ссылки на публикации\"!\n\nОпубликование перечисленных в шаблоне показателей на сайте организации в сети Интернет и в печатных изданиях не обязательно, если данный шаблон предоставлен по системе ЕИАС (региональный сегмент)."]
[null,"Обязательное опубликование на официальном сайте органа исполнительной власти субъекта Российской Федерации в области государственного регулирования цен (тарифов), и (или) на официальном сайте органа местного самоуправления поселения или городского округа в случае их наделения в соответствии с законом субъекта Российской Федерации полномочиями по государственному регулированию цен (тарифов)предусмотрено пунктом 3 (а) постановления Правительства №570 от 05.07.2013 г."]
[null,"Задайте период регулирования, выбрав даты начала и окончания очередного периода регулирования из календаря (иконка справа от указанной ячейки), либо введите дату непосредственно в ячейку в формате - 'ДД.ММ.ГГГГ'"]
[null,"Шаблон заполняется раздельно по каждому виду тарифа"]
[null,"Ссылки на публикации"]
[null,"Вводите адрес сайта, не нарушая цвет ячейки /если копируете гиперссылку из браузера, то выполните двойной щелчок по ячейке и только после этого можете вставить скопированный элемент/"]
[null,"Обосновывающие материалы (документы) необходимо загружать с помощью \"ЕИАС Мониторинг\". Ссылка на инструкцию по загрузке обосновывающих материалов (документов) расположена на листе 'Инструкция' в п.'Методология заполнения'.\r\n\r\nВвводите ссылку, не нарушая цвет ячейки /если копируете гиперссылку из браузера, то выполните двойной щелчок по ячейке и только после этого можете вставить скопированный элемент/."]
[null,"Если для какого-либо пункта графы 'Наименование источника (сайта или печатного издания)' информация не раскрывалась, то в соответствующем поле укажите - 'не раскрывалась'"]
[null,"Список МО"]
[null,"В случае, если тариф не дифференцируется по системам теплоснабжения, перечислите все муниципальные районы, в которых организация осуществляет услуги в сфере теплоснабжения"]
[null,"В случае, если тариф не дифференцируется по системам теплоснабжения, перечислите все муниципальные образования, в которых организация осуществляет услуги в сфере теплоснабжения"]
[null,"Признак дифференциации тарифа"]
[null,"В случае, если тариф не дифференцируется по системам теплоснабжения, укажите '1'. Выберите значение из списка, указав очередной условный порядковый номер системы теплоснабжения"]
[null,"Стандарты"]
[null,"В качестве примечания Вы можете указать единицу измерения"]
[null,{"$f":"\"Укажите в ячейке \" & ADDRESS(ROW(Стандарты!$F$24),COLUMN(Стандарты!$F$24),4,TRUE) & \", ссылку на сведения о долгосрочных параметрах регулирования, размещенные в сети Интернет, либо укажите в ячейке \" & ADDRESS(ROW(Стандарты!$G$24),COLUMN(Стандарты!$G$24),4,TRUE) & \" ссылку на материалы Хранилища\"","v":"Укажите в ячейке F24, ссылку на сведения о долгосрочных параметрах регулирования, размещенные в сети Интернет, либо укажите в ячейке G24 ссылку на материалы Хранилища"}]

{"sheet":"modRegion","index":17,"n_rows":0,"n_cols":0,"rows_kept":0,"cut":false,"hidden":true,"merged":[]}

{"sheet":"modReestr","index":18,"n_rows":0,"n_cols":0,"rows_kept":0,"cut":false,"hidden":true,"merged":[]}

{"sheet":"modfrmReestr","index":19,"n_rows":0,"n_cols":0,"rows_kept":0,"cut":false,"hidden":true,"merged":[]}

{"sheet":"modUpdTemplMain","index":20,"n_rows":0,"n_cols":0,"rows_kept":0,"cut":false,"hidden":true,"merged":[]}

{"sheet":"REESTR_ORG","index":21,"n_rows":117,"n_cols":12,"rows_kept":117,"cut":false,"hidden":true,"merged":[]}
["№","NSRF","MR_NAME","OKTMO_MR_NAME","MO_NAME","OKTMO_NAME","RST_ORG_ID","ORG_NAME","INN_NAME","KPP_NAME","VDET_NAME"]
[1,"Ярославская область","город Ярославль","78701000","город Ярославль","78701000","26483206","\"Ярославский электровозоремонтный завод\" им. Б.П. Бещева - филиал ОАО \"Желдорреммаш\"","7715729877","760443001","производство (некомбинированная выработка)+передача+сбыт","WARM"]
[2,"Ярославская область","город Рыбинск","78715000","город Рыбинск","78715000","28135188","АО \"Газпромнефть-Терминал\"","5406724282","540601001","производство (некомбинированная выработка)+передача+сбыт","WARM"]
[3,"Ярославская область","","","","","26560525","АО \"Главное управление жилищно-коммунального хозяйства\"","5116000922","511601001","производство (некомбинированная выработка)+сбыт","WARM"]
[4,"Ярославская область","город Ярославль","78701000","город Ярославль","78701000","28822308","АО \"Малая комплексная энергетика\"","7612043797","760601001","производство (некомбинированная выработка)","WARM"]
[5,"Ярославская область","Первомайский муниципальный район","78629000","Первомайский муниципальный район","78629000","26514573","АО \"Первомайское коммунальное хозяйство\"","7623004895","762301001","производство (некомбинированная выработка)+передача+сбыт","WARM"]
[6,"Ярославская область","","","","","26901857","АО \"РЭУ\"","7714783092","332743001","производство (некомбинированная выработка)+передача","WARM"]
[7,"Ярославская область","","","","","26838066","АО \"РЭУ\"","7714783092","774501001","производство (некомбинированная выработка)+передача","WARM"]
[8,"Ярославская область","город Рыбинск","78715000","город Рыбинск","78715000","26483401","АО \"Рыбинский завод приборостроения\"","7610062970","761001001","производство (некомбинированная выработка)+передача+сбыт","WARM"]
[9,"Ярославская область","город Ярославль","78701000","город Ярославль","78701000","26483176","АО \"Старк-Ресурс\"","7601001072","760401001","производство (некомбинированная выработка)+передача+сбыт","WARM"]
[10,"Ярославская область","Тутаевский муниципальный район","78643000","Городское поселение г.Тутаев","78643101","28134686","АО \"Тутаевская ПГУ\"","7611020204","761101001","производство комбинированная выработка","WARM"]
[11,"Ярославская область","город Ярославль","78701000","город Ярославль","78701000","26569087","АО \"Ярославская генерирующая компания\"","7604178769","760601001","производство (некомбинированная выработка)+передача+сбыт","WARM"]
[12,"Ярославская область","Гаврилов-Ямский муниципальный район","78612000","Великосельское сельское поселение","78612405","26483352","Великосельское МП ЖКХ","7616006563","761601001","производство (некомбинированная выработка)+передача+сбыт","WARM"]
[13,"Ярославская область","город Ярославль","78701000","город Ярославль","78701000","26483170","Главное управление ОАО \"ТГК-2\" по Верхневолжскому региону г. Ярославль","7606053324","760631001","производство комбинированная выработка","WARM"]
[14,"Ярославская область","город Ярославль","78701000","город Ярославль","78701000","26483170","Главное управление ОАО \"ТГК-2\" по Верхневолжскому региону г. Ярославль","7606053324","760631001","Передача+Сбыт","WARM"]
[15,"Ярославская область","Ростовский муниципальный район","78637000","Городское поселение г.Ростов","78637101","26483431","ЗАО \"Атрус\"","7609002208","760901001","производство (некомбинированная выработка)+сбыт","WARM"]
[16,"Ярославская область","город Ярославль","78701000","город Ярославль","78701000","26483190","ЗАО \"Волгаэнергоресурс\"","7602053796","760101001","производство (некомбинированная выработка)+передача+сбыт","WARM"]
[17,"Ярославская область","город Ярославль","78701000","город Ярославль","78701000","26525046","ЗАО \"Железобетон\"","7601000262","760201001","Передача","WARM"]
[18,"Ярославская область","Ростовский муниципальный район","78637000","Ростовский муниципальный район","78637000","26483427","ЗАО \"Консервный завод \"Поречский\"","7609015486","760901001","производство (некомбинированная выработка)+передача+сбыт","WARM"]
[19,"Ярославская область","Некрасовский муниципальный район","78626000","Некрасовское сельское поселение","78626457","26483320","ЗАО \"Левашово\"","7621000461","762101001","производство (некомбинированная выработка)","WARM"]
[20,"Ярославская область","город Переславль-Залесский","78705000","город Переславль-Залесский","78705000","26483153","ЗАО \"Новый мир\"","7608001240","760801001","производство (некомбинированная выработка)+передача+сбыт","WARM"]
[21,"Ярославская область","город Ярославль","78701000","город Ярославль","78701000","26483200","ЗАО \"Норский керамический завод\"","7602013169","760201001","производство (некомбинированная выработка)+передача+сбыт","WARM"]
[22,"Ярославская область","Ярославский муниципальный район","78650000","Ярославский муниципальный район","78650000","26514513","ЗАО \"Пансионат отдыха \"Ярославль\"","7627015577","762701001","производство (некомбинированная выработка)+передача+сбыт","WARM"]
[23,"Ярославская область","Рыбинский муниципальный район","78640000","Рыбинский муниципальный район","78640000","26649288","ЗАО \"Санаторий имени Воровского\"","7626001860","761001001","производство (некомбинированная выработка)+передача+сбыт","WARM"]
[24,"Ярославская область","город Ярославль","78701000","город Ярославль","78701000","26483196","ЗАО \"Хром\"","7601001724","760401001","производство (некомбинированная выработка)+передача+сбыт","WARM"]
[25,"Ярославская область","город Ярославль","78701000","город Ярославль","78701000","26649314","ЗАО \"Ярославль-Резинотехника\"","7603024491","760301001","производство (некомбинированная выработка)+передача+сбыт","WARM"]
[26,"Ярославская область","Любимский муниципальный район","78618000","Городское поселение г. Любим","78618101","26483338","Любимское МУП ЖКХ","7618000140","761801001","производство (некомбинированная выработка)+передача+сбыт","WARM"]
[27,"Ярославская область","Большесельский муниципальный район","78603000","Большесельское сельское поселение","78603422","26483463","МУП \"Коммунальник\"","7613004085","761301001","производство (некомбинированная выработка)+передача+сбыт","WARM"]
[28,"Ярославская область","Брейтовский муниципальный район","78609000","Брейтовский муниципальный район","78609000","30344297","МУП \"Коммунальное хозяйство\"","7615011610","761501001","производство (некомбинированная выработка)+передача","WARM"]
[29,"Ярославская область","Любимский муниципальный район","78618000","Любимский муниципальный район","78618000","28505444","МУП \"Любимский теплосервис\"","7618004018","761801001","производство (некомбинированная выработка)+передача+сбыт","WARM"]
[30,"Ярославская область","Некоузский муниципальный район","78623000","Октябрьское сельское поселение","78623427","26483443","МУП \"Октябрьское жилищно-коммунальное хозяйство\"","7620004833","762001001","производство (некомбинированная выработка)+передача+сбыт","WARM"]
[31,"Ярославская область","Угличский муниципальный район","78646000","Городское поселение г.Углич","78646101","26483240","МУП \"Предприятие коммунально-бытового обслуживания\"","7612039712","761201001","производство (некомбинированная выработка)+передача+сбыт","WARM"]
[32,"Ярославская область","Некрасовский муниципальный район","78626000","Некрасовский муниципальный район","78626000","28442711","МУП \"РКЦ ЖКУ\"","7621006030","762101001","производство (некомбинированная выработка)+передача","WARM"]
[33,"Ярославская область","Рыбинский муниципальный район","78640000","Рыбинский муниципальный район","78640000","30345479","МУП \"Система ЖКХ\"","7610088016","761001001","производство (некомбинированная выработка)+передача+сбыт","WARM"]
[34,"Ярославская область","город Переславль-Залесский","78705000","город Переславль-Залесский","78705000","26483622","МУП \"Спектр\"","7608011873","760801001","производство (некомбинированная выработка)+передача+сбыт","WARM"]
[35,"Ярославская область","Угличский муниципальный район","78646000","Городское поселение г.Углич","78646101","27569386","МУП \"Тепловые сети\"","7612043980","761201001","Передача","WARM"]
[36,"Ярославская область","город Переславль-Залесский","78705000","город Переславль-Залесский","78705000","26785009","МУП \"Энергетик\"","7608010100","760801002","производство комбинированная выработка","WARM"]
[37,"Ярославская область","город Переславль-Залесский","78705000","город Переславль-Залесский","78705000","26785009","МУП \"Энергетик\"","7608010100","760801002","производство (некомбинированная выработка)+передача+сбыт","WARM"]
[38,"Ярославская область","Некрасовский муниципальный район","78626000","Некрасовское сельское поселение","78626457","29646676","МУП \"Энергетический ресурс\" Некрасовского муниципального района","7621010075","762101001","производство (некомбинированная выработка)+передача+сбыт","WARM"]
[39,"Ярославская область","город Ярославль","78701000","город Ярославль","78701000","26483228","МУП \"Яргорэнергосбыт\" г. Ярославля","7604088265","760301001","производство (некомбинированная выработка)+передача+сбыт","WARM"]
[40,"Ярославская область","город Рыбинск","78715000","город Рыбинск","78715000","26483369","МУП ГО г. Рыбинска \"Водоканал\"","7610012391","761001001","производство (некомбинированная выработка)+передача+сбыт","WARM"]
[41,"Ярославская область","город Рыбинск","78715000","город Рыбинск","78715000","26483373","МУП ГО г.Рыбинск \"Теплоэнерго\"","7610044403","761001001","производство (некомбинированная выработка)+передача+сбыт","WARM"]
[42,"Ярославская область","Брейтовский муниципальный район","78609000","Брейтовский муниципальный район","78609000","26483459","МУП ЖКХ \"Брейтовское\"","7615010408","761501001","производство (некомбинированная выработка)+передача+сбыт","WARM"]
[43,"Ярославская область","Некрасовский муниципальный район","78626000","Бурмакино сельское поселение","78626409","28425128","МУП ЖКХ \"Бурмакино\"","7621009707","762101001","производство (некомбинированная выработка)","WARM"]
[44,"Ярославская область","Некрасовский муниципальный район","78626000","Некрасовский муниципальный район","78626000","26483506","МУП ЖКХ \"Заволжское\"","7621005558","762101001","производство (некомбинированная выработка)+передача+сбыт","WARM"]
[45,"Ярославская область","Некрасовский муниципальный район","78626000","Некрасовский муниципальный район","78626000","26483506","МУП ЖКХ \"Заволжское\"","7621005558","762101001","производство комбинированная выработка","WARM"]
[46,"Ярославская область","Первомайский муниципальный район","78629000","Первомайский муниципальный район","78629000","28821524","МУП ЖКХ Первомайского муниципального района Ярославской области \"Теплоснаб\"","7623005151","762301001","производство (некомбинированная выработка)+сбыт","WARM"]
[47,"Ярославская область","Рыбинский муниципальный район","78640000","Рыбинский муниципальный район","78640000","26483304","МУП РМР ЯО \"Коммунальные системы\"","7610074824","761001001","производство (некомбинированная выработка)+передача+сбыт","WARM"]
[48,"Ярославская область","Тутаевский муниципальный район","78643000","Тутаевский муниципальный район","78643000","28443212","МУП ТМР \"Тутаевские коммунальные системы\"","7611022836","761101001","производство (некомбинированная выработка)+передача+сбыт","WARM"]
[49,"Ярославская область","город Ярославль","78701000","город Ярославль","78701000","26524662","НУЗ \"Дорожная больница станции Ярославль ОАО \"РЖД\"","7604068188","760401001","производство (некомбинированная выработка)+передача+сбыт","WARM"]
[50,"Ярославская область","Некрасовский муниципальный район","78626000","Некрасовское сельское поселение","78626457","26483332","Некрасовское МП ЖКХ","7621000133","762101001","производство (некомбинированная выработка)+передача+сбыт","WARM"]
[51,"Ярославская область","город Рыбинск","78715000","город Рыбинск","78715000","26483393","ОАО \"Воентелеком\"","7718766718","761043001","производство (некомбинированная выработка)+передача+сбыт","WARM"]
[52,"Ярославская область","Гаврилов-Ямский муниципальный район","78612000","Гаврилов-Ямский муниципальный район","78612000","26483350","ОАО \"Гаврилов-Ямский машиностроительный завод \"Агат\"","7616002417","761601001","производство (некомбинированная выработка)+передача+сбыт","WARM"]
[53,"Ярославская область","Даниловский муниципальный район","78615000","Городское поселение г. Данилов","78615101","26483455","ОАО \"Даниловский маслосырзвод\"","7617000268","761701001","производство (некомбинированная выработка)+передача+сбыт","WARM"]
[54,"Ярославская область","Даниловский муниципальный район","78615000","Городское поселение г. Данилов","78615101","26483474","ОАО \"Даниловское ЖКХ\"","7617008098","761701001","производство (некомбинированная выработка)","WARM"]
[55,"Ярославская область","Ярославский муниципальный район","78650000","Ярославский муниципальный район","78650000","26514525","ОАО \"ЖКХ \"Заволжье\"","7627032974","762701001","производство (некомбинированная выработка)+передача+сбыт","WARM"]
[56,"Ярославская область","город Ярославль","78701000","город Ярославль","78701000","26524667","ОАО \"Инкомпроект-Инвест\"","7604149662","760401001","производство (некомбинированная выработка)+передача+сбыт","WARM"]
[57,"Ярославская область","город Ярославль","78701000","город Ярославль","78701000","26483184","ОАО \"Компания \"Спектр\"","7609012894","760601001","производство (некомбинированная выработка)+передача+сбыт","WARM"]
[58,"Ярославская область","город Рыбинск","78715000","город Рыбинск","78715000","26483377","ОАО \"НПО \"Сатурн\"","7610052644","761001001","Передача+Сбыт","WARM"]
[59,"Ярославская область","город Рыбинск","78715000","город Рыбинск","78715000","26483377","ОАО \"НПО \"Сатурн\"","7610052644","761001001","производство комбинированная выработка","WARM"]
[60,"Ярославская область","Ростовский муниципальный район","78637000","Семибратово сельское поселение","78637447","28878481","ОАО \"НПО ФИНГО\"","7609001719","760901002","Передача","WARM"]
[61,"Ярославская область","город Рыбинск","78715000","город Рыбинск","78715000","26483395","ОАО \"Раскат\"","7610002851","761001001","производство (некомбинированная выработка)+передача+сбыт","WARM"]
[62,"Ярославская область","Гаврилов-Ямский муниципальный район","78612000","Городское поселение г. Гаврилов-Ям","78612101","26483340","ОАО \"Ресурс\"","7616009483","761601001","производство (некомбинированная выработка)+передача+сбыт","WARM"]
[63,"Ярославская область","город Ярославль","78701000","город Ярославль","78701000","26483220","ОАО \"Русские краски\"","7605015012","760501001","производство (некомбинированная выработка)+передача+сбыт","WARM"]
[64,"Ярославская область","город Рыбинск","78715000","город Рыбинск","78715000","27569426","ОАО \"Рыбинсккорм\"","7610018435","761001001","производство (некомбинированная выработка)+передача","WARM"]
[65,"Ярославская область","город Рыбинск","78715000","город Рыбинск","78715000","27569426","ОАО \"Рыбинсккорм\"","7610018435","761001001","производство комбинированная выработка","WARM"]
[66,"Ярославская область","город Рыбинск","78715000","город Рыбинск","78715000","26483375","ОАО \"Рыбинскхлеб\"","7610005796","761001001","производство (некомбинированная выработка)+передача+сбыт","WARM"]
[67,"Ярославская область","город Рыбинск","78715000","город Рыбинск","78715000","26483385","ОАО \"Рыбинскхлебопродукт\"","7610002700","761001001","производство (некомбинированная выработка)+передача+сбыт","WARM"]
[68,"Ярославская область","Ярославский муниципальный район","78650000","Ярославский муниципальный район","78650000","27548439","ОАО \"Санаторий \"Красный Холм\"","7627015619","762701001","производство (некомбинированная выработка)","WARM"]
[69,"Ярославская область","город Ярославль","78701000","город Ярославль","78701000","26523308","ОАО \"ТГК-2\"","7606053324","760601001","производство комбинированная выработка","WARM"]
[70,"Ярославская область","город Ярославль","78701000","город Ярославль","78701000","26523308","ОАО \"ТГК-2\"","7606053324","760601001","Передача+Сбыт","WARM"]
[71,"Ярославская область","город Ярославль","78701000","город Ярославль","78701000","26483162","ОАО \"Яргортеплоэнерго\"","7606047507","760601001","производство (некомбинированная выработка)","WARM"]
[72,"Ярославская область","город Ярославль","78701000","город Ярославль","78701000","28507030","ОАО \"Яркоммунсервис\"","7602090950","760201001","производство (некомбинированная выработка)+передача+сбыт","WARM"]
[73,"Ярославская область","город Ярославль","78701000","город Ярославль","78701000","26483230","ОАО \"Ярославльводоканал\"","7606069518","760601001","производство (некомбинированная выработка)+передача+сбыт","WARM"]
[74,"Ярославская область","город Ярославль","78701000","город Ярославль","78701000","26483194","ОАО \"Ярославский вагоноремонтный завод \"Ремпутьмаш\"","7603030907","760301001","производство (некомбинированная выработка)+передача+сбыт","WARM"]
[75,"Ярославская область","город Ярославль","78701000","город Ярославль","78701000","26483174","ОАО \"Ярославский комбинат технических тканей \"Красный Перекоп\"","7601001146","760501001","Передача","WARM"]
[76,"Ярославская область","Тутаевский муниципальный район","78643000","Тутаевский муниципальный район","78643000","26319496","ОАО \"Ярославский нефтеперерабатывающий завод им. Д.И. Менделеева\"","7611002100","761101001","производство (некомбинированная выработка)+передача+сбыт","WARM"]
[77,"Ярославская область","город Ярославль","78701000","город Ярославль","78701000","26483178","ОАО \"Ярославский радиозавод\"","7601000086","760401001","производство (некомбинированная выработка)+передача+сбыт","WARM"]
[78,"Ярославская область","город Ярославль","78701000","город Ярославль","78701000","26811543","ОАО \"Ярославский технический углерод\"","7605000714","760150001","производство (некомбинированная выработка)+передача+сбыт","WARM"]
[79,"Ярославская область","город Ярославль","78701000","город Ярославль","78701000","28267865","ООО  «Котельная завода «Пролетарская свобода»","7604077129","760401001","производство (некомбинированная выработка)+передача+сбыт","WARM"]
[80,"Ярославская область","город Ярославль","78701000","город Ярославль","78701000","26483198","ООО \"АДС\"","7604008710","760401001","производство (некомбинированная выработка)+передача+сбыт","WARM"]
[81,"Ярославская область","Ярославский муниципальный район","78650000","Карабихское сельское поселение","78650430","28254087","ООО \"БизнесПродуктГрупп\"","7708579934","772301001","производство (некомбинированная выработка)+передача+сбыт","WARM"]
[82,"Ярославская область","город Ярославль","78701000","город Ярославль","78701000","28932227","ООО \"Газпром теплоэнерго Ярославль\"","7603060690","760301001","производство (некомбинированная выработка)+передача+сбыт","WARM"]
[83,"Ярославская область","город Рыбинск","78715000","город Рыбинск","78715000","26483367","ООО \"Крома\"","7610063251","761001001","производство (некомбинированная выработка)+передача+сбыт","WARM"]
[84,"Ярославская область","город Рыбинск","78715000","город Рыбинск","78715000","28868584","ООО \"ЛЕСЛА ПЛЮС\"","7610105053","761001001","производство (некомбинированная выработка)","WARM"]
[85,"Ярославская область","Рыбинский муниципальный район","78640000","Назаровское сельское поселение","78640430","28981279","ООО \"ЛКМ\"","7610110198","761001001","производство (некомбинированная выработка)+передача+сбыт","WARM"]
[86,"Ярославская область","Ярославский муниципальный район","78650000","Кузнечихинское сельское поселение","78650435","27568785","ООО \"Муниципальные коммунальные системы\"","7627036930","762701001","производство (некомбинированная выработка)+передача+сбыт","WARM"]
[87,"Ярославская область","город Переславль-Залесский","78705000","город Переславль-Залесский","78705000","26649427","ООО \"Муниципальные энергетические системы\"","7727575942","760801001","производство (некомбинированная выработка)+передача+сбыт","WARM"]
[88,"Ярославская область","город Рыбинск","78715000","город Рыбинск","78715000","26525313","ООО \"Мясопродукт\"","7610041709","761001001","производство (некомбинированная выработка)+передача+сбыт","WARM"]
[89,"Ярославская область","город Ярославль","78701000","город Ярославль","78701000","28856606","ООО \"Ориентир\"","7604234847","760401001","производство (некомбинированная выработка)","WARM"]
[90,"Ярославская область","город Переславль-Залесский","78705000","город Переславль-Залесский","78705000","28505423","ООО \"Переславская энергетическая компания\"","7608010870","645001001","производство (некомбинированная выработка)+передача+сбыт","WARM"]
[91,"Ярославская область","город Рыбинск","78715000","город Рыбинск","78715000","26525309","ООО \"Раскат-РОС\"","7610059375","761001002","производство (некомбинированная выработка)+сбыт","WARM"]
[92,"Ярославская область","город Рыбинск","78715000","город Рыбинск","78715000","27965323","ООО \"Рыбинсккабель\"","7610093062","761050001","производство (некомбинированная выработка)","WARM"]
[93,"Ярославская область","Рыбинский муниципальный район","78640000","Рыбинский муниципальный район","78640000","26483296","ООО \"Санаторий \"Черная речка\"","7610057882","761001001","производство (некомбинированная выработка)+передача+сбыт","WARM"]
[94,"Ярославская область","город Ярославль","78701000","город Ярославль","78701000","27555004","ООО \"Спецторг Плюс\"","7604076460","760401001","производство (некомбинированная выработка)+передача+сбыт","WARM"]
[95,"Ярославская область","город Ярославль","78701000","город Ярославль","78701000","28982870","ООО \"ТеплоЭнергостройМонтаж\"","7606074821","762701001","производство (некомбинированная выработка)+передача+сбыт","WARM"]
[96,"Ярославская область","город Ярославль","78701000","город Ярославль","78701000","27569416","ООО \"Тепловая энергетическая компания - 1\"","7604188573","760401001","производство (некомбинированная выработка)+передача+сбыт","WARM"]
[97,"Ярославская область","город Ярославль","78701000","город Ярославль","78701000","26483204","ООО \"ТехЭкспо\"","7604122607","760401001","производство (некомбинированная выработка)+передача+сбыт","WARM"]
[98,"Ярославская область","Тутаевский муниципальный район","78643000","Тутаевский муниципальный район","78643000","26525371","ООО \"УК Левобережье\"","7611018780","761101001","производство (некомбинированная выработка)+передача+сбыт","WARM"]
[99,"Ярославская область","Угличский муниципальный район","78646000","Угличский муниципальный район","78646000","28459632","ООО \"УМПРЭО\"","7612038469","761201001","производство (некомбинированная выработка)+передача+сбыт","WARM"]
[100,"Ярославская область","Угличский муниципальный район","78646000","Городское поселение г.Углич","78646101","26483244","ООО \"Угличский завод минеральной воды\"","7612003339","761201001","производство (некомбинированная выработка)+передача+сбыт","WARM"]
[101,"Ярославская область","Угличский муниципальный район","78646000","Угличский муниципальный район","78646000","26483256","ООО \"Угличский экспериментальный ремонтно-механический завод\"","7612033358","761201001","производство (некомбинированная выработка)+передача+сбыт","WARM"]
[102,"Ярославская область","город Ярославль","78701000","город Ярославль","78701000","28135241","ООО \"Управляющая производственно-торговая компания \"Топливоподающие системы\"","7603013073","760301001","производство (некомбинированная выработка)+передача+сбыт","WARM"]
[103,"Ярославская область","город Ярославль","78701000","город Ярославль","78701000","26483210","ООО \"Энергия-1\"","7605005021","760501001","производство (некомбинированная выработка)+передача+сбыт","WARM"]
[104,"Ярославская область","Угличский муниципальный район","78646000","Угличский муниципальный район","78646000","27971145","ООО \"Энергокомпания\"","7612044470","761201001","производство (некомбинированная выработка)+передача+сбыт","WARM"]
[105,"Ярославская область","город Ярославль","78701000","город Ярославль","78701000","26483164","ООО \"Ярославская фабрика валяной обуви\"","7603015433","760301001","производство (некомбинированная выработка)+передача+сбыт","WARM"]
[106,"Ярославская область","город Ярославль","78701000","город Ярославль","78701000","26650304","ПАО \"Ярославский ордена Ленина и ордена Октябрьской революции шинный завод\"","7601001509","760150001","Передача","WARM"]
[107,"Ярославская область","город Ярославль","78701000","город Ярославль","78701000","26836275","Северная Дирекция по тепловодоснабжению структурное подразделение Центральной дирекции по тепловодоснабжению - филиала ОАО \"РЖД\"","7708503727","760445028","производство (некомбинированная выработка)","WARM"]
[108,"Ярославская область","Ярославский муниципальный район","78650000","Ярославский муниципальный район","78650000","26483266","ФГУП \"Григорьевское\"","7627000901","762701001","производство (некомбинированная выработка)+передача+сбыт","WARM"]
[109,"Ярославская область","Угличский муниципальный район","78646000","Угличский муниципальный район","78646000","26483238","ФГУП Экспериментальный сыродельный завод","7612002423","761201001","производство (некомбинированная выработка)","WARM"]
[110,"Ярославская область","город Рыбинск","78715000","город Рыбинск","78715000","26483391","ФКУ Следственный изолятор 2 УФСИН по Ярославской области","7610028000","761001001","производство (некомбинированная выработка)+передача+сбыт","WARM"]
[111,"Ярославская область","город Ярославль","78701000","город Ярославль","78701000","28160602","ФКУ Следственный изолятор № 1 УФСИН России по Ярославской области","7607008444","760401001","производство (некомбинированная выработка)","WARM"]
[112,"Ярославская область","Ярославский муниципальный район","78650000","Ярославский муниципальный район","78650000","26483447","Филиал ООО \"Транснефть-Балтика\"-Ярославское районное нефтепроводное управление","4704041900","762702001","производство (некомбинированная выработка)+передача+сбыт","WARM"]
[113,"Ярославская область","Некоузский муниципальный район","78623000","Веретейское сельское поселение","78623404","26557735","Филиал ФГУП \"ЖКУ РАН\" Борок","7736111591","762043001","производство (некомбинированная выработка)+передача+сбыт","WARM"]
[114,"Ярославская область","город Ярославль","78701000","город Ярославль","78701000","26649247","Филиал в Ярославской и Костромской областях ОАО междугородной и международной электрической связи \"Ростелеком\"","7707049388","760443003","производство (некомбинированная выработка)+передача+сбыт","WARM"]
[115,"Ярославская область","Гаврилов-Ямский муниципальный район","78612000","Гаврилов-Ямский муниципальный район","78612000","26483342","Шопшинское МП ЖКХ","7616006316","761601001","производство (некомбинированная выработка)+передача+сбыт","WARM"]
[116,"Ярославская область","город Ярославль","78701000","город Ярославль","78701000","26526614","Ярославская дистанция гражданских сооружений, водоснабжения и водоотведения ЯО СЖД-филиала ОАО \"РЖД\"","7708503727","997650007","производство (некомбинированная выработка)+передача+сбыт","WARM"]

{"sheet":"modClassifierValidate","index":22,"n_rows":0,"n_cols":0,"rows_kept":0,"cut":false,"hidden":true,"merged":[]}

{"sheet":"modHyp","index":23,"n_rows":0,"n_cols":0,"rows_kept":0,"cut":false,"hidden":true,"merged":[]}

{"sheet":"modList03","index":24,"n_rows":0,"n_cols":0,"rows_kept":0,"cut":false,"hidden":true,"merged":[]}

{"sheet":"modfrmDateChoose","index":25,"n_rows":0,"n_cols":0,"rows_kept":0,"cut":false,"hidden":true,"merged":[]}

{"sheet":"modComm","index":26,"n_rows":0,"n_cols":0,"rows_kept":0,"cut":false,"hidden":true,"merged":[]}

{"sheet":"modThisWorkbook","index":27,"n_rows":0,"n_cols":0,"rows_kept":0,"cut":false,"hidden":true,"merged":[]}

{"sheet":"REESTR_MO","index":28,"n_rows":101,"n_cols":4,"rows_kept":101,"cut":false,"hidden":true,"merged":[]}
["№","МР","МО","МО_ОКТМО"]
[1,"Большесельский муниципальный район","Благовещенское сельское поселение","78603411"]
[2,"Большесельский муниципальный район","Большесельский муниципальный район","78603000"]
[3,"Большесельский муниципальный район","Большесельское сельское поселение","78603422"]
[4,"Большесельский муниципальный район","Вареговское сельское поселение","78603427"]
[5,"Борисоглебский муниципальный район","Андреевское сельское поселение","78606422"]
[6,"Борисоглебский муниципальный район","Борисоглебский муниципальный район","78606000"]
[7,"Борисоглебский муниципальный район","Борисоглебское сельское поселение","78606407"]
[8,"Борисоглебский муниципальный район","Вощажниковское сельское поселение","78606410"]
[9,"Борисоглебский муниципальный район","Высоковское сельское поселение","78606415"]
[10,"Борисоглебский муниципальный район","Инальцинское сельское поселение","78606405"]
[11,"Брейтовский муниципальный район","Брейтовский муниципальный район","78609000"]
[12,"Брейтовский муниципальный район","Брейтовское сельское поселение","78609411"]
[13,"Брейтовский муниципальный район","Гореловское сельское поселение","78609422"]
[14,"Брейтовский муниципальный район","Прозоровское сельское поселение","78609433"]
[15,"Гаврилов-Ямский муниципальный район","Великосельское сельское поселение","78612405"]
[16,"Гаврилов-Ямский муниципальный район","Гаврилов-Ямский муниципальный район","78612000"]
[17,"Гаврилов-Ямский муниципальный район","Городское поселение г. Гаврилов-Ям","78612101"]
[18,"Гаврилов-Ямский муниципальный район","Заячье-Холмское сельское поселение","78612477"]
[19,"Гаврилов-Ямский муниципальный район","Митинское сельское поселение","78612450"]
[20,"Гаврилов-Ямский муниципальный район","Шопшинское сельское поселение","78612490"]
[21,"Даниловский муниципальный район","Городское поселение г. Данилов","78615101"]
[22,"Даниловский муниципальный район","Даниловский муниципальный район","78615000"]
[23,"Даниловский муниципальный район","Даниловское сельское поселение","78615435"]
[24,"Даниловский муниципальный район","Дмитриевское сельское поселение","78615420"]
[25,"Даниловский муниципальный район","Середское сельское поселение","78615470"]
[26,"Любимский муниципальный район","Воскресенское сельское поселение","78618405"]
[27,"Любимский муниципальный район","Городское поселение г. Любим","78618101"]
[28,"Любимский муниципальный район","Ермаковское сельское поселение","78618410"]
[29,"Любимский муниципальный район","Любимский муниципальный район","78618000"]
[30,"Любимский муниципальный район","Осецкое сельское поселение","78618433"]
[31,"Мышкинский муниципальный район","Городское поселение г. Мышкин","78621101"]
[32,"Мышкинский муниципальный район","Мышкинский муниципальный район","78621000"]
[33,"Мышкинский муниципальный район","Охотинское сельское поселение","78621430"]
[34,"Мышкинский муниципальный район","Приволжское сельское поселение","78621415"]
[35,"Некоузский муниципальный район","Веретейское сельское поселение","78623404"]
[36,"Некоузский муниципальный район","Волжское сельское поселение","78623406"]
[37,"Некоузский муниципальный район","Некоузский муниципальный район","78623000"]
[38,"Некоузский муниципальный район","Некоузское сельское поселение","78623415"]
[39,"Некоузский муниципальный район","Октябрьское сельское поселение","78623427"]
[40,"Некрасовский муниципальный район","Бурмакино сельское поселение","78626409"]
[41,"Некрасовский муниципальный район","Красный Профинтерн сельское поселение","78626444"]
[42,"Некрасовский муниципальный район","Некрасовский муниципальный район","78626000"]
[43,"Некрасовский муниципальный район","Некрасовское сельское поселение","78626457"]
[44,"Первомайский муниципальный район","Городское поселение п.Пречистое","78629151"]
[45,"Первомайский муниципальный район","Кукобойское сельское поселение","78629435"]
[46,"Первомайский муниципальный район","Первомайский муниципальный район","78629000"]
[47,"Первомайский муниципальный район","Пречистенское сельское поселение","78629450"]
[48,"Переславский муниципальный район","Нагорьевское сельское поселение","78632452"]
[49,"Переславский муниципальный район","Переславский муниципальный район","78632000"]
[50,"Переславский муниципальный район","Пригородное сельское поселение","78632455"]
[51,"Переславский муниципальный район","Рязанцевское сельское поселение","78632468"]
[52,"Пошехонский муниципальный район","Белосельское сельское поселение","78634404"]
[53,"Пошехонский муниципальный район","Городское поселение Пошехонье","78634101"]
[54,"Пошехонский муниципальный район","Ермаковское сельское поселение","78634428"]
[55,"Пошехонский муниципальный район","Кременевское сельское поселение","78634460"]
[56,"Пошехонский муниципальный район","Пошехонский муниципальный район","78634000"]
[57,"Пошехонский муниципальный район","Пригородное сельское поселение","78634436"]
[58,"Ростовский муниципальный район","Городское поселение г.Ростов","78637101"]
[59,"Ростовский муниципальный район","Ишня сельское поселение","78637412"]
[60,"Ростовский муниципальный район","Петровское сельское поселение","78637441"]
[61,"Ростовский муниципальный район","Поречье-Рыбное сельское поселение","78637442"]
[62,"Ростовский муниципальный район","Ростовский муниципальный район","78637000"]
[63,"Ростовский муниципальный район","Семибратово сельское поселение","78637447"]
[64,"Рыбинский муниципальный район","Арефинское сельское поселение","78640410"]
[65,"Рыбинский муниципальный район","Волжское сельское поселение","78640415"]
[66,"Рыбинский муниципальный район","Глебовское сельское поселение","78640443"]
[67,"Рыбинский муниципальный район","Городское поселение Песочное","78640455"]
[68,"Рыбинский муниципальный район","Каменниковское сельское поселение","78640425"]
[69,"Рыбинский муниципальный район","Назаровское сельское поселение","78640430"]
[70,"Рыбинский муниципальный район","Огарковское сельское поселение","78640440"]
[71,"Рыбинский муниципальный район","Октябрьское сельское поселение","78640420"]
[72,"Рыбинский муниципальный район","Покровское сельское поселение","78640435"]
[73,"Рыбинский муниципальный район","Рыбинский муниципальный район","78640000"]
[74,"Рыбинский муниципальный район","Судоверфское сельское поселение","78640452"]
[75,"Рыбинский муниципальный район","Тихменевское сельское поселение","78640447"]
[76,"Тутаевский муниципальный район","Артемьевское сельское поселение","78643405"]
[77,"Тутаевский муниципальный район","Городское поселение г.Тутаев","78643101"]
[78,"Тутаевский муниципальный район","Константиновское сельское поселение","78643420"]
[79,"Тутаевский муниципальный район","Левобережное сельское поселение","78643460"]
[80,"Тутаевский муниципальный район","Тутаевский муниципальный район","78643000"]
[81,"Тутаевский муниципальный район","Чебаковское сельское поселение","78643450"]
[82,"Угличский муниципальный район","Головинское сельское поселение","78646440"]
[83,"Угличский муниципальный район","Городское поселение г.Углич","78646101"]
[84,"Угличский муниципальный район","Ильинское сельское поселение","78646420"]
[85,"Угличский муниципальный район","Отрадновское сельское поселение","78646475"]
[86,"Угличский муниципальный район","Слободское сельское поселение","78646410"]
[87,"Угличский муниципальный район","Угличский муниципальный район","78646000"]
[88,"Угличский муниципальный район","Улейминское сельское поселение","78646480"]
[89,"Ярославский муниципальный район","Городское поселение п. Лесная Поляна","78650155"]
[90,"Ярославский муниципальный район","Заволжское сельское поселение","78650410"]
[91,"Ярославский муниципальный район","Ивняковское сельское поселение","78650455"]
[92,"Ярославский муниципальный район","Карабихское сельское поселение","78650430"]
[93,"Ярославский муниципальный район","Кузнечихинское сельское поселение","78650435"]
[94,"Ярославский муниципальный район","Курбское сельское поселение","78650440"]
[95,"Ярославский муниципальный район","Некрасовское сельское поселение","78650470"]
[96,"Ярославский муниципальный район","Туношенское сельское поселение","78650495"]
[97,"Ярославский муниципальный район","Ярославский муниципальный район","78650000"]
[98,"город Переславль-Залесский","город Переславль-Залесский","78705000"]
[99,"город Рыбинск","город Рыбинск","78715000"]
[100,"город Ярославль","город Ярославль","78701000"]

{"sheet":"modfrmReestrMR","index":29,"n_rows":0,"n_cols":0,"rows_kept":0,"cut":false,"hidden":true,"merged":[]}

{"sheet":"modfrmCheckUpdates","index":30,"n_rows":0,"n_cols":0,"rows_kept":0,"cut":false,"hidden":true,"merged":[]}